[Event "76th Montenegro Championship 2024"]
[Site "Podgorica"]
[Date "2024.02.09"]
[Round "4.8"]
[White "Krstonijevic, Stjepan"]
[Black "Zherebtsova, Alexandra"]
[Result "1/2-1/2"]
[ECO "D05"]
[WhiteElo "2108"]
[BlackElo "2270"]
[Annotator "NA"]
[PlyCount "65"]
[EventDate "2024.02.06"]
[EventType "swiss"]
[EventCountry "MNE"]
[SourceTitle "playchess.com"]
[Source "ChessBase"]
[SourceQuality "1"]
[TimeControl "40/5400+30:1800+30"]

1. Nf3 {[%emt 0:00:57]} Nf6 {[%emt 0:06:20]} 2. d4 {[%emt 0:00:25]} d5 {[%emt 0:00:14]} 3. e3 {[%emt 0:00:35]} c5 {[%emt 0:00:45]} 4. c3 {[%emt 0:00:09]} e6 {[%emt 0:01:29]} 5. Bd3 {[%emt 0:00:47]} Be7 {[%emt 0:01:50]} 6. O-O {[%emt 0:01:49]} O-O {[%emt 0:02:51]} 7. Nbd2 {[%emt 0:00:05]} Nbd7 {[%emt 0:10:20]} 8. Qe2 {[%emt 0:09:27]} b6 {[%emt 0:04:37]} 9. e4 {[%emt 0:02:06]} dxe4 {[%emt 0:01:25]} 10. Nxe4 {[%emt 0:00:31]} Bb7 {[%emt 0:01:14]} 11. Bf4 {[%emt 0:03:16]} cxd4 {[%emt 0:04:36]} 12. cxd4 {[%emt 0:00:15]} Nxe4 {[%emt 0:04:05]} 13. Bxe4 {[%emt 0:00:33]} Bxe4 {[%emt 0:00:17]} 14. Qxe4 {[%emt 0:00:17]} Nf6 {[%emt 0:00:26]} 15. Qb7 {[%emt 0:04:27]} Nd5 {[%emt 0:02:31]} 16. Bd2 {[%emt 0:10:15]} Qc8 {[%emt 0:06:09]} 17. Qxc8 {[%emt 0:00:53]} Rfxc8 {[%emt 0:00:13]} 18. Rfc1 {[%emt 0:01:13]} Bd6 {[%emt 0:03:45]} 19. Kf1 {[%emt 0:08:43]} Kf8 {[%emt 0:05:01]} 20. Ke2 {[%emt 0:05:11]} Ke7 {[%emt 0:02:01]} 21. g3 {[%emt 0:04:38]} f6 {[%emt 0:02:59]} 22. Kd3 {[%emt 0:03:49]} Kd7 {[%emt 0:03:59]} 23. a4 {[%emt 0:02:16]} a6 {[%emt 0:04:04]} 24. b3 {[%emt 0:06:43]} g5 {[%emt 0:03:17]} 25. h3 {[%emt 0:00:17]} Rab8 {[%emt 0:07:56]} 26. Rc4 {[%emt 0:33:53]} h5 {[%emt 0:21:06]} 27. Rac1 {[%emt 0:00:30]} g4 {[%emt 0:00:30]} 28. hxg4 {[%emt 0:00:30]} hxg4 29. Rxc8 {[%emt 0:00:30]} Rxc8 30. Rxc8 Kxc8 {[%emt 0:01:30]} 31. Ng1 f5 {[%emt 0:00:30]} 32. Ne2 Nf6 33. Be3 {[%emt 0:02:00]} 1/2-1/2

[Event "76th Montenegro Championship 2024"]
[Site "Podgorica"]
[Date "2024.02.09"]
[Round "4.9"]
[White "Musovic, Armin"]
[Black "Vujovic, Savo"]
[Result "0-1"]
[ECO "C47"]
[WhiteElo "2268"]
[BlackElo "2137"]
[Annotator "NA RC"]
[PlyCount "120"]
[EventDate "2024.02.06"]
[EventType "swiss"]
[EventCountry "MNE"]
[SourceTitle "playchess.com"]
[Source "ChessBase"]
[SourceQuality "1"]
[TimeControl "40/5400+30:1800+30"]

1. e4 {[%emt 0:00:01]} e5 {[%emt 0:00:07]} 2. Nf3 {[%emt 0:00:05]} Nc6 {[%emt 0:00:05]} 3. Nc3 {[%emt 0:00:19]} Nf6 {[%emt 0:00:08]} 4. a3 {[%emt 0:01:25]} d5 {[%emt 0:00:10]} 5. Bb5 {[%emt 0:00:03]} Nxe4 {[%emt 0:00:10]} 6. Qe2 {[%emt 0:00:03]} Qd6 {[%emt 0:00:07]} 7. Nxe4 {[%emt 0:00:13]} dxe4 {[%emt 0:00:05]} 8. Qxe4 {[%emt 0:00:03]} Bd7 {[%emt 0:00:22]} 9. d4 {[%emt 0:00:28]} f5 {[%emt 0:00:15]} 10. Qe2 {[%emt 0:00:35]} e4 {[%emt 0:00:12]} 11. Bxc6 {[%emt 0:00:53]} Bxc6 {[%emt 0:00:06]} 12. Ne5 {[%emt 0:00:12]} Be7 {[%emt 0:00:09]} 13. Bf4 {[%emt 0:16:51]} O-O {[%emt 0:00:12]} 14. Rd1 {[%emt 0:09:57]} Qe6 {[%emt 0:21:53]} 15. c4 {[%emt 0:08:08]} Ba4 {[%emt 0:00:10]} 16. Rb1 {[%emt 0:00:34]} g5 {[%emt 0:09:40]} 17. Bc1 {[%emt 0:00:58]} c5 {[%emt 0:00:35]} 18. b3 {[%emt 0:08:05]} cxd4 {[%emt 0:09:32]} 19. bxa4 {[%emt 0:00:58]} Qxe5 {[%emt 0:00:11]} 20. O-O {[%emt 0:04:20]} f4 {[%emt 0:08:32]} 21. Rxb7 {[%emt 0:19:57]} f3 {[%emt 0:01:15]} 22. gxf3 {[%emt 0:00:26]} Rxf3 {[%emt 0:02:20]} 23. c5 {[%emt 0:00:21]} Raf8 {[%emt 0:20:26]} 24. Qc4+ {[%emt 0:01:53]} Kh8 {[%emt 0:00:40]} 25. Rxe7 {[%emt 0:00:47]} Qxe7 {[%emt 0:00:10]} 26. Qxd4+ {[%emt 0:02:26]} Kg8 {[%emt 0:02:19]} 27. Qd5+ {[%emt 0:08:25]} R8f7 {[%emt 0:10:35]} 28. Bxg5 {[%emt 0:01:03]} Qf8 {[%emt 0:03:43]} 29. Be3 {[%emt 0:02:38]} R3f5 {[%emt 0:06:35]} 30. Qxe4 {[%emt 0:03:52]} Rg7+ {[%emt 0:00:08]} 31. Kh1 {[%emt 0:00:17]} Re5 {[%emt 0:00:18]} 32. Qc4+ {[%emt 0:00:32]} Kh8 {[%emt 0:00:04]} 33. Qe2 {[%emt 0:03:09]} Qf5 {[%emt 0:01:23]} 34. f4 {[%emt 0:02:51]} Qe4+ {[%emt 0:00:19]} 35. Qf3 {[%emt 0:02:20]} Qxe3 {[%emt 0:00:11]} 36. fxe5 {[%emt 0:00:42]} Rg1+ {[%emt 0:00:06]} 37. Rxg1 {[%emt 0:00:02]} Qxf3+ {[%emt 0:00:05]} 38. Rg2 {[%emt 0:00:05]} Qd1+ {[%emt 0:00:04]} 39. Rg1 {[%emt 0:00:03]} Qd5+ {[%emt 0:00:05]} 40. Rg2 {[%emt 0:00:00]} Qxe5 {[%emt 0:00:00]} 41. Rg3 {[%emt 0:00:29]} Qd5+ {[%emt 0:00:54]} 42. Kg1 {[%emt 0:00:42]} Qxc5+ {[%emt 0:00:38]} 43. Kg2 {[%emt 0:00:04]} Qc6+ {[%emt 0:00:12]} 44. Kf2 {[%emt 0:00:29]} Qxa4 {[%emt 0:00:10]} 45. Kg2 {[%emt 0:00:04]} Qe4+ {[%emt 0:00:14]} 46. Kf2 {[%emt 0:00:04]} h5 {[%emt 0:00:11]} 47. h3 {[%emt 0:00:44]} Kh7 {[%emt 0:00:48]} 48. Re3 {[%emt 0:00:11]} Qd4 {[%emt 0:00:13]} 49. Kf3 {[%emt 0:00:07]} Kg6 {[%emt 0:00:12]} 50. Re6+ {[%emt 0:01:12]} Kf5 {[%emt 0:00:15]} 51. Re3 {[%emt 0:00:03]} Qd2 {[%emt 0:00:31]} 52. Re7 {[%emt 0:00:21]} Qd5+ {[%emt 0:00:35]} 53. Ke2 {[%emt 0:00:24]} Qg2+ {[%emt 0:00:12]} 54. Kd3 {[%emt 0:00:15]} Qxh3+ {[%emt 0:00:10]} 55. Re3 {[%emt 0:00:04]} Qf1+ {[%emt 0:00:08]} 56. Kc3 {[%emt 0:00:04]} h4 {[%emt 0:00:09]} 57. a4 {[%emt 0:00:04]} h3 {[%emt 0:00:06]} 58. Kb4 {[%emt 0:00:52]} Qf4+ {[%emt 0:00:13]} 59. Ka5 {[%emt 0:00:03]} Qxe3 {[%emt 0:00:05]} 60. Kb5 {[%emt 0:00:03]} h2 {[%emt 0:00:11]} 0-1

[Event "76th Montenegro Championship 2024"]
[Site "Podgorica"]
[Date "2024.02.09"]
[Round "4.10"]
[White "Skvortsova, Alena"]
[Black "Kalezic, Blazo"]
[Result "1-0"]
[ECO "C05"]
[WhiteElo "2111"]
[BlackElo "2407"]
[Annotator "TA"]
[PlyCount "101"]
[EventDate "2024.02.06"]
[EventType "swiss"]
[EventCountry "MNE"]
[SourceTitle "playchess.com"]
[Source "ChessBase"]
[SourceQuality "1"]
[TimeControl "40/5400+30:1800+30"]

{[%evp 15,101,0,0,0,0,0,22,13,26,16,77,81,99,94,100,85,124,126,118,84,102,66,70,33,37,35,73,71,117,125,128,131,220,204,317,283,286,247,297,99,79,131,87,117,159,0,0,-42,-38,-36,-31,-49,22,25,41,29,327,331,368,264,416,433,454,450,454,440,450,429,431,414,1050,957,1210,1077,1644,1606,1522,1012,1633,1514,1524,1517,1300,1154,29978,29979,29977,29978]} 1. e4 {[%emt 0:03:12]} e6 {[%emt 0:00:10]} 2. d4 {[%emt 0:00:08]} d5 {[%emt 0:00:08]} 3. Nd2 {[%emt 0:00:08]} Nf6 {[%emt 0:00:10]} 4. e5 {[%emt 0:00:08]} Nfd7 {[%emt 0:00:09]} 5. f4 {[%emt 0:00:12]} c5 {[%emt 0:00:06]} 6. c3 {[%emt 0:00:09]} Nc6 {[%emt 0:00:09]} 7. Ndf3 {[%emt 0:00:14]} Qb6 {[%emt 0:00:10]} 8. a3 {[%emt 0:00:22]} Be7 {[%emt 0:01:15]} 9. b4 {[%emt 0:00:16] C05: French Tarrasch: 3...Nf6 4 e5 Nfd7, 5 f4 and 5 Bd3 sidelines.} cxd4 {[%emt 0:00:21]} 10. cxd4 {[%emt 0:00:07]} O-O {[%emt 0:01:19]} 11. Bd3 {[%emt 0:00:23]} f5 {[%emt 0:00:53]} 12. Ne2 {[%emt 0:00:53]} Rf7 $146 {[%emt 0:06:06]} (12... a6 $11) ({Predecessor:} 12... Qd8 13. Rg1 Nb6 14. g4 Qe8 15. gxf5 exf5 16. Ng3 Be6 17. Qc2 Rc8 18. Qg2 Qg6 {½-½ Ravi,T (2385)-Radjabov,T (2476) Biel MTO op 2000 (2)}) 13. O-O $16 {[%emt 0:02:59]} Nf8 {[%emt 0:01:54]} 14. Kh1 {[%emt 0:00:26]} Bd7 {[%emt 0:02:53]} 15. Rg1 {[%emt 0:03:30]} h5 {[%emt 0:03:39]} 16. Be3 {[%emt 0:11:35]} Rc8 {[%emt 0:04:17]} 17. Ra2 {[%emt 0:01:33]} Nb8 {[%emt 0:03:21]} 18. Nc1 {[%emt 0:03:30]} Bb5 {[%emt 0:01:07]} 19. Bb1 {[%emt 0:03:52]} Bc4 {[%emt 0:00:32]} 20. Rb2 {[%emt 0:02:56]} Qd8 {[%emt 0:04:42]} 21. h3 {[%emt 0:01:21]} g6 {[%emt 0:01:17]} (21... h4 $142) 22. g4 $16 {[%emt 0:01:05]} hxg4 {[%emt 0:02:42]} 23. hxg4 {[%emt 0:00:13]} Rc6 {[%emt 0:08:31]} (23... Rh7+ $16 24. Rh2 Rxh2+ 25. Kxh2 Kf7) 24. Rh2 $18 {[%emt 0:05:39]} Nbd7 {[%emt 0:02:25]} (24... Rg7 {was necessary.} 25. Nd3 Nbd7) 25. Nd2 $18 {[%emt 0:12:38]} Ba6 {[%emt 0:08:57]} 26. Ncb3 {[%emt 0:04:56] Black must now prevent gxf5.} Rg7 27. Na5 $2 {[%emt 0:08:24]} (27. gxf5 $18 {is more deadly.} exf5 28. Qf3) 27... Rc3 $16 {[%emt 0:05:38] [#]} 28. gxf5 $1 {[%emt 0:02:01]} exf5 {[%emt 0:04:38]} 29. Qf3 {[%emt 0:03:08]} Ne6 {[%emt 0:03:22] [#]} 30. Qxd5 $2 {[%emt 0:05:38]} ({Only move:} 30. Bxf5 $1 $16 gxf5 31. Rxg7+ Kxg7 32. Qg3+ (32. Qxd5 $2 Ndf8 $19) 32... Bg5 (32... Kf7 33. Rh7+ Kf8 34. Qg6 Rc1+ 35. Kh2) 33. fxg5) 30... Ndf8 $11 {[%emt 0:00:19]} 31. Qxd8 {[%emt 0:14:07]} (31. Qf3 $5 Nxd4 32. Ba2+ Nde6 33. Nb1 $11 (33. Nxb7 $2 Bxb7 34. Qxb7 Rxe3 $19)) 31... Bxd8 {[%emt 0:00:10]} 32. d5 {[%emt 0:00:30]} Rxe3 {[%emt 0:00:30]} 33. dxe6 {[%emt 0:00:30]} Rxa3 {[%emt 0:00:30]} (33... Nxe6 $2 34. Ba2 Kf7 35. Nac4 $18) ({Black should try} 33... Bxa5 $1 $15 34. Ba2 Re7 35. bxa5 b5 (35... Nxe6 $2 36. Rxg6+ Kf7 37. Rf6+ Ke8 38. Rxe6 $18) (35... Rxa3 36. Bb1 $11)) 34. Nac4 $11 {[%emt 0:00:30]} Ra1 {[%emt 0:00:30]} 35. Nd6 $1 {[%emt 0:00:30] Repels Bb5. And now Nb3 would win.} Be7 $2 {[%emt 0:00:30][%mdl 8192]} (35... Nxe6 36. Nb3 (36. b5 Bxb5 37. Nxb5 Bb6 $16) 36... Ra3 37. b5 Bxb5 (37... Rxb3 38. bxa6 Rxb1 39. Rxb1 $16) 38. Nxb5 Rxb3 39. Ba2 Rxb5 40. Bxe6+ Kf8 41. Rd1 $18) (35... Bb6 $1 $11 {and Black stays safe.} 36. Rg3 Nxe6) 36. Nb3 $18 {[%emt 0:00:30]} Rxb1 {[%emt 0:00:30]} 37. Rxb1 {[%emt 0:04:06]} Bxd6 {[%emt 0:15:14]} (37... Nxe6 {was worth a try.} 38. Nc5 (38. b5 Bxd6 39. bxa6 Bc7 $18) 38... Nxf4) 38. exd6 $18 {[%emt 0:00:04]} Nxe6 {[%emt 0:00:25]} 39. Nc5 {[%emt 0:02:32] Prevents Rd7} Nxc5 {[%emt 0:05:25]} 40. bxc5 {[%emt 0:00:00][%cal Oc5c6] White wants to mate with c6!} Bd3 {[%emt 0:00:00]} 41. Rb3 {[%emt 0:12:29]} Be4+ {[%emt 0:02:20]} 42. Kg1 {[%emt 0:00:02] Hoping for Rbh3.} Kf7 {[%emt 0:01:01]} (42... g5 $142 43. fxg5 Rxg5+ 44. Kf2 Rg7) 43. Rbh3 $18 {[%emt 0:03:07] d7 is the strong threat.} Ke6 {[%emt 0:05:40]} 44. Rh7 {[%emt 0:00:23]} Rg8 {[%emt 0:00:23]} 45. Re7+ {[%emt 0:08:17]} Kd5 {[%emt 0:00:22]} 46. Rd2+ {[%emt 0:00:32]} ({Not} 46. Rxb7 Kxc5 47. Rxa7 Kxd6 48. Rd2+ Kc6 $18) 46... Kxc5 {[%emt 0:02:17]} 47. d7 {[%emt 0:00:07] White threatens Re8 and mate.} Rd8 {[%emt 0:00:19]} 48. Re8 {[%emt 0:00:05]} Rxd7 {[%emt 0:00:16]} 49. Rxd7 {[%emt 0:00:04][%cal Oe8e4] Rxe4! would kill now.} a5 {[%emt 0:00:40] [#]} 50. Rxe4 $1 {[%emt 0:01:01]} fxe4 {[%emt 0:00:08]} 51. Rxb7 {[%emt 0:00:04]} 1-0

[Event "76th Montenegro Championship 2024"]
[Site "Podgorica"]
[Date "2024.02.09"]
[Round "4.11"]
[White "Popovic, Mateja"]
[Black "Ivanovic, Bozidar"]
[Result "0-1"]
[ECO "A61"]
[WhiteElo "1880"]
[BlackElo "2403"]
[Annotator "TA"]
[PlyCount "58"]
[EventDate "2024.02.06"]
[EventType "swiss"]
[EventCountry "MNE"]
[SourceTitle "playchess.com"]
[Source "ChessBase"]
[SourceQuality "1"]
[TimeControl "40/5400+30:1800+30"]

{[%evp 19,58,38,43,18,17,16,19,22,16,12,16,0,9,0,0,2,24,-78,6,-41,17,-49,29,-32,-24,-31,-25,-102,-79,-88,-37,-79,-79,-73,-85,-182,-94,-586,-585,-562,-549]} 1. d4 {[%emt 0:00:07]} Nf6 {[%emt 0:00:16]} 2. c4 {[%emt 0:00:15]} c5 {[%emt 0:00:25]} 3. d5 {[%emt 0:00:22]} e6 {[%emt 0:00:39]} 4. Nc3 {[%emt 0:01:16]} exd5 {[%emt 0:00:19]} 5. cxd5 {[%emt 0:01:06]} d6 {[%emt 0:00:16]} 6. Nf3 {[%emt 0:01:18]} g6 {[%emt 0:00:47]} 7. Nd2 {[%emt 0:02:40]} Nbd7 {[%emt 0:21:29]} 8. e4 {[%emt 0:06:10]} a6 {[%emt 0:01:16]} 9. a4 {[%emt 0:02:28]} Bg7 {[%emt 0:04:08]} 10. Nc4 {[%emt 0:08:25]} Nb6 {[%emt 0:01:34]} 11. Nxb6 {[%emt 0:10:33]} Qxb6 {[%emt 0:01:15]} 12. a5 {[%emt 0:00:24]} Qc7 {[%emt 0:07:49]} 13. Be2 {[%emt 0:04:20] The position is equal.} O-O {[%emt 0:01:26]} 14. O-O {[%emt 0:00:20]} Re8 {[%emt 0:00:16]} 15. Qc2 {[%emt 0:01:32]} Rb8 {[%emt 0:07:59]} 16. Re1 {[%emt 0:06:37]} b5 {[%emt 0:00:57]} 17. axb6 {[%emt 0:00:15]} Rxb6 {[%emt 0:02:46]} 18. f4 {[%emt 0:05:31]} (18. Bd2 $11 {remains equal.}) 18... Qb8 {[%emt 0:03:28]} ({Better is} 18... Qe7 $17 {[%cal Rf6e4]} 19. h3 Nxe4) 19. Bf3 {[%emt 0:08:40]} (19. h3 $11) 19... Bd7 {[%emt 0:42:55]} (19... Bg4 $15) 20. Ra2 {[%emt 0:10:06]} ({White should try} 20. h3 $11) 20... Bc8 {[%emt 0:00:00]} (20... Bg4 $15) 21. Be3 {[%emt 0:06:50]} (21. h3 $11) 21... Ng4 $15 {[%emt 0:00:00]} 22. Bxg4 {[%emt 0:05:10]} Bxg4 {[%emt 0:00:00]} 23. Na4 {[%emt 0:00:59]} (23. f5 $11 {keeps the balance.} Bd4 24. fxg6 hxg6 (24... Bxe3+ 25. Rxe3 hxg6 26. h3 $11) 25. h3 Bxe3+ 26. Rxe3) 23... Rb4 {[%emt 0:00:00]} 24. Bd2 {[%emt 0:07:59]} Rb5 {[%emt 0:00:00] Black is much more active.} ({Black should play} 24... Bd4+ $17 25. Kh1 Rb3) 25. Bc3 {[%emt 0:00:26]} Bd4+ {[%emt 0:00:00]} 26. Bxd4 {[%emt 0:00:59]} cxd4 {[%emt 0:00:00]} 27. Qd3 {[%emt 0:00:35]} (27. Qd2 $17) 27... Rxd5 {[%emt 0:00:00]} (27... Bd7 $19 {And now ...Rb4 would win.} 28. h3 (28. Qxd4 $2 {loses.} Rb4 $19) 28... a5) 28. Nc3 $2 {[%emt 0:06:21][%mdl 8192] [#]} (28. Qd2 $17 Rb5 29. Qxd4) 28... dxc3 $19 {[%emt 0:00:00]} 29. Qxd5 {[%emt 0:00:22]} Be6 {[%emt 0:00:00] Weighted Error Value: White=0.67/Black=0.32.  Loses game:     	White=1     	---        Mistake:       	White=6     	Black=5      Inaccurate:     	White=1     	---        OK:         	White=4     	Black=4      Best:        	White=1     	Black=2} 0-1

[Event "76th Montenegro Championship 2024"]
[Site "Podgorica"]
[Date "2024.02.09"]
[Round "4.12"]
[White "Tomic, Aleksandar"]
[Black "Ratkovic, Milorad"]
[Result "1-0"]
[ECO "B81"]
[WhiteElo "2398"]
[BlackElo "2063"]
[Annotator "TA"]
[PlyCount "65"]
[EventDate "2024.02.06"]
[EventType "swiss"]
[EventCountry "MNE"]
[SourceTitle "playchess.com"]
[Source "ChessBase"]
[SourceQuality "1"]
[TimeControl "40/5400+30:1800+30"]

{[%evp 18,65,84,89,127,108,131,133,124,122,119,129,135,100,122,75,145,48,59,53,112,103,114,100,291,289,422,408,449,418,697,684,752,716,1195,1141,2150,2109,2651,2507,29985,29986,29988,29989,29988,29989,29990,29991,29997,29998]} 1. e4 {[%emt 0:00:14]} c5 {[%emt 0:00:10]} 2. Nf3 {[%emt 0:00:08]} e6 {[%emt 0:00:43]} 3. d4 {[%emt 0:00:07]} cxd4 {[%emt 0:00:09]} 4. Nxd4 {[%emt 0:00:02]} Nf6 {[%emt 0:00:39]} 5. Nc3 {[%emt 0:00:12]} d6 {[%emt 0:00:18]} 6. g4 {[%emt 0:00:07][%cal Bg2g4,Bg4g5][%mdl 32]} Be7 {[%emt 0:01:23]} 7. g5 {[%emt 0:00:21]} Nfd7 {[%emt 0:00:08]} 8. h4 {[%emt 0:00:06][%cal Bh2h4,Bh4h5][%mdl 32]} a6 {[%emt 0:00:12]} 9. f4 {[%emt 0:09:31]} Nc6 {[%emt 0:04:17]} 10. Be3 {[%emt 0:00:49]} Qc7 {[%emt 0:04:36]} 11. h5 {[%emt 0:11:03] White has more active pieces. The black rooks are passive.} b5 {[%emt 0:08:15]} 12. Nxc6 {[%emt 0:17:27]} Qxc6 {[%emt 0:00:11] White is clearly better.} 13. Qd4 {[%emt 0:00:16]} Rg8 {[%emt 0:15:55]} 14. O-O-O {[%emt 0:12:45][%cal Be1c1,Bc1b1,Bb1a1][%mdl 32]} Bb7 {[%emt 0:04:38]} 15. Rh2 {[%emt 0:13:16]} Nc5 {[%emt 0:05:07]} 16. Bg2 {[%emt 0:32:06]} ({White should try} 16. f5) 16... a5 {[%emt 0:11:52] [#]} ({Better is} 16... Rc8) 17. e5 {[%emt 0:00:30]} (17. a3 $1 $16) 17... d5 $14 {[%emt 0:00:45]} 18. Kb1 $36 {[%emt 0:00:00][%mdl 2048] White is more active.} Rc8 {[%emt 0:07:06]} (18... b4 $14) 19. Qd2 {[%emt 0:00:00][%cal Of4f5]} b4 {[%emt 0:10:46] [#]} 20. Ne2 {[%emt 0:00:00][%cal Og5g6,Bc3e2,Be2d4,Bd4e6,Be6c5][%mdl 32]} Ba6 $2 {[%emt 0:06:42] Black cannot hold the game after this.} (20... g6 $16) 21. Nd4 $18 {[%emt 0:00:00]} Qb7 {[%emt 0:00:23]} (21... Qc7 {was necessary.} 22. f5 Bd8) 22. f5 {[%emt 0:00:00]} Na4 {[%emt 0:00:28][%cal Oa4c3]} 23. Ka1 {[%emt 0:00:00]} ({Weaker is} 23. fxe6 fxe6 24. Nxe6 Nc3+ 25. Ka1 (25. bxc3 $2 {leads to mate.} bxc3+) 25... Nxd1 26. Qxd1 Bc4) 23... Nc5 {[%emt 0:01:03]} (23... Nc3 $142 24. bxc3 bxc3) 24. g6 {[%emt 0:00:00]} hxg6 {[%emt 0:00:22]} 25. hxg6 {[%emt 0:00:00]} f6 {[%emt 0:00:38]} 26. Nxe6 {[%emt 0:00:00]} b3 {[%emt 0:11:00]} 27. Bxc5 {[%emt 0:00:00]} bxc2 {[%emt 0:00:32]} 28. Qxc2 {[%emt 0:00:00]} Bxc5 {[%emt 0:00:25]} 29. Nxc5 {[%emt 0:00:00] White mates.} Qb6 {[%emt 0:02:05]} 30. exf6 {[%emt 0:00:00]} gxf6 {[%emt 0:00:46]} 31. Bxd5 {[%emt 0:00:00]} Rxc5 {[%emt 0:00:20]} 32. Qe4+ {[%emt 0:00:00]} Kf8 {[%emt 0:00:26] [#]} 33. g7+ $1 {[%emt 0:00:00] Weighted Error Value: White=0.10 (very precise) /Black=0.82.  Loses game:     	---       	Black=1      Mistake:       	White=2     	Black=4      OK:         	White=6     	Black=3      Best:        	White=1     	Black=1} 1-0

[Event "76th Montenegro Championship 2024"]
[Site "Podgorica"]
[Date "2024.02.09"]
[Round "4.13"]
[White "Vujosevic, Vladimir"]
[Black "Koljevic, Nikolina"]
[Result "1-0"]
[ECO "A04"]
[WhiteElo "2335"]
[BlackElo "1974"]
[Annotator "ChessBase"]
[PlyCount "33"]
[EventDate "2024.02.06"]
[EventType "swiss"]
[EventCountry "MNE"]
[SourceTitle "playchess.com"]
[Source "ChessBase"]
[SourceQuality "1"]
[TimeControl "40/5400+30:1800+30"]

1. e4 c5 2. Nf3 e6 3. d3 Nc6 4. g3 Nge7 5. Bg2 g6 6. O-O Bg7 7. Re1 O-O 8. c3 {[%emt 0:03:34]} d5 {[%emt 0:03:36]} 9. e5 {[%emt 0:07:13]} d4 {[%emt 0:06:36]} 10. c4 {[%emt 1:24:43]} Qc7 11. Bf4 b6 12. Nbd2 Bb7 13. h4 Rad8 14. Ne4 {[%emt 0:00:00]} Nxe5 {[%emt 0:06:47]} 15. Nxe5 {[%emt 0:00:00]} Bxe5 {[%emt 0:00:30]} 16. Nf6+ {[%emt 0:00:00]} Kg7 {[%emt 0:00:30]} 17. Bxe5 {[%emt 0:00:00]} 1-0